[Event "*** Titled Tuesday Blitz"]
[Site "Chess.com"]
[Date "2021.02.16"]
[Round "3"]
[White "cstevens1"]
[Black "Chernov_Alexander_A"]
[Result "1-0"]
[WhiteElo "2643"]
[BlackElo "2291"]
[TimeControl "180+1"]
[EndTime "10:30:33 PST"]
[Termination "cstevens1 won by resignation"]

1. e4 {[%clk 0:03:00.9]} 1... c6 {[%clk 0:02:59.5]} 2. Nf3 {[%clk 0:02:59.7]}
2... d5 {[%clk 0:02:59.4]} 3. exd5 {[%clk 0:03:00.6]} 3... cxd5 {[%clk
0:02:58.9]} 4. Ne5 {[%clk 0:03:00.4]} 4... Nc6 {[%clk 0:02:57.9]} 5. Bb5 {[%clk
0:03:00.7]} 5... Bd7 {[%clk 0:02:57.8]} 6. Nxd7 {[%clk 0:03:01.1]} 6... Qxd7
{[%clk 0:02:57.6]} 7. d4 {[%clk 0:03:01.6]} 7... a6 {[%clk 0:02:56.6]} 8. Ba4
{[%clk 0:02:58.9]} 8... Nf6 {[%clk 0:02:54.1]} 9. c3 {[%clk 0:02:59.3]} 9... e6
{[%clk 0:02:53.6]} 10. O-O {[%clk 0:02:59.5]} 10... g6 {[%clk 0:02:51.9]} 11.
Re1 {[%clk 0:02:59.8]} 11... Bg7 {[%clk 0:02:51.6]} 12. Nd2 {[%clk 0:03:00.4]}
12... O-O {[%clk 0:02:51.3]} 13. Nf3 {[%clk 0:03:01]} 13... b5 {[%clk
0:02:49.9]} 14. Bc2 {[%clk 0:02:59]} 14... Rfc8 {[%clk 0:02:47]} 15. Bd3 {[%clk
0:02:55.7]} 15... Rab8 {[%clk 0:02:44.4]} 16. Bf4 {[%clk 0:02:54.7]} 16... Ra8
{[%clk 0:02:43.2]} 17. a3 {[%clk 0:02:54.1]} 17... Na5 {[%clk 0:02:42.9]} 18.
Ne5 {[%clk 0:02:53.7]} 18... Qb7 {[%clk 0:02:41.6]} 19. h4 {[%clk 0:02:53.1]}
19... Nc4 {[%clk 0:02:38.3]} 20. Qe2 {[%clk 0:02:52.7]} 20... a5 {[%clk
0:02:36]} 21. g4 {[%clk 0:02:50.2]} 21... h5 {[%clk 0:02:14.6]} 22. g5 {[%clk
0:02:26.2]} 22... Ne8 {[%clk 0:02:10.1]} 23. Nxg6 {[%clk 0:02:19.2]} 23... fxg6
{[%clk 0:02:06.6]} 24. Bxg6 {[%clk 0:02:12.4]} 24... Ra6 {[%clk 0:02:01.7]} 25.
Qxh5 {[%clk 0:02:07.2]} 25... Qe7 {[%clk 0:01:47.9]} 26. Qh7+ {[%clk 0:01:45]}
26... Kf8 {[%clk 0:01:46.7]} 27. h5 {[%clk 0:01:45.4]} 27... e5 {[%clk
0:01:15.7]} 28. dxe5 {[%clk 0:01:44.4]} 28... Rxg6 {[%clk 0:01:12.4]} 29. Qxg6
{[%clk 0:01:43.9]} 29... Qf7 {[%clk 0:01:07]} 30. Qxf7+ {[%clk 0:01:32.9]} 30...
Kxf7 {[%clk 0:01:06.3]} 31. e6+ {[%clk 0:01:17.8]} 31... Kg8 {[%clk 0:01:01.4]}
32. h6 {[%clk 0:01:17.6]} 32... Bh8 {[%clk 0:00:49.1]} 33. g6 {[%clk 0:01:17.4]}
33... Bf6 {[%clk 0:00:44.7]} 34. Rad1 {[%clk 0:01:07.1]} 34... Rd8 {[%clk
0:00:39.1]} 35. e7 {[%clk 0:00:50.5]} 35... Rd7 {[%clk 0:00:38.5]} 36. Re6
{[%clk 0:00:45]} 36... Rxe7 {[%clk 0:00:30.5]} 37. Rxe7 {[%clk 0:00:42]} 37...
Bxe7 {[%clk 0:00:29.8]} 38. Re1 {[%clk 0:00:33.4]} 38... Kf8 {[%clk 0:00:25.9]}
39. g7+ {[%clk 0:00:33.1]} 39... Kf7 {[%clk 0:00:18.7]} 40. Rxe7+ {[%clk
0:00:31.7]} 1-0

[Event "*** Titled Tuesday Blitz"]
[Site "Chess.com"]
[Date "2021.02.16"]
[Round "3"]
[White "A-S-00"]
[Black "Evachess2006"]
[Result "1-0"]
[WhiteElo "2299"]
[BlackElo "1609"]
[TimeControl "180+1"]
[EndTime "10:30:33 PST"]
[Termination "A-S-00 won by checkmate"]

1. e4 {[%clk 0:03:00.9]} 1... e5 {[%clk 0:02:59.1]} 2. Nf3 {[%clk 0:03:00.3]}
2... Nc6 {[%clk 0:03:00]} 3. Bb5 {[%clk 0:02:59.9]} 3... a6 {[%clk 0:02:54.9]}
4. Ba4 {[%clk 0:02:59.3]} 4... Nf6 {[%clk 0:02:45.5]} 5. O-O {[%clk 0:02:57.4]}
5... Be7 {[%clk 0:02:41.1]} 6. c3 {[%clk 0:02:53.3]} 6... b5 {[%clk 0:02:40.1]}
7. Bb3 {[%clk 0:02:52]} 7... Kf8 {[%clk 0:02:40.1]} 8. Re1 {[%clk 0:02:45.1]}
8... d5 {[%clk 0:02:25.5]} 9. exd5 {[%clk 0:02:43.5]} 9... Nxd5 {[%clk
0:02:26.4]} 10. Nxe5 {[%clk 0:02:40.4]} 10... Nxe5 {[%clk 0:02:21.3]} 11. Rxe5
{[%clk 0:02:39.6]} 11... c6 {[%clk 0:02:21.2]} 12. d4 {[%clk 0:02:34]} 12... Bd6
{[%clk 0:02:03.7]} 13. Re1 {[%clk 0:02:31.4]} 13... Qh4 {[%clk 0:01:47.9]} 14.
g3 {[%clk 0:02:31]} 14... Qh3 {[%clk 0:01:19.6]} 15. Qf3 {[%clk 0:02:26.9]}
15... Bg4 {[%clk 0:01:16.5]} 16. Qg2 {[%clk 0:02:22.7]} 16... Qh5 {[%clk
0:01:13.9]} 17. Nd2 {[%clk 0:02:19.3]} 17... g6 {[%clk 0:01:07.5]} 18. f3 {[%clk
0:02:02.4]} 18... Bh3 {[%clk 0:01:00.9]} 19. Qf2 {[%clk 0:02:00.6]} 19... Kg7
{[%clk 0:00:55.5]} 20. Ne4 {[%clk 0:01:56.7]} 20... Rad8 {[%clk 0:00:46.3]} 21.
g4 {[%clk 0:01:36.3]} 21... Bxg4 {[%clk 0:00:33.5]} 22. fxg4 {[%clk 0:01:35.8]}
22... Qxg4+ {[%clk 0:00:34.4]} 23. Qg2 {[%clk 0:01:33.3]} 23... h5 {[%clk
0:00:15.2]} 24. Nxd6 {[%clk 0:01:24.7]} 24... Rxd6 {[%clk 0:00:06.3]} 25. Qxg4
{[%clk 0:01:17.3]} 25... hxg4 {[%clk 0:00:06.1]} 26. Kg2 {[%clk 0:01:02.9]}
26... Re6 {[%clk 0:00:06.3]} 27. Rxe6 {[%clk 0:00:59.9]} 27... fxe6 {[%clk
0:00:06.4]} 28. Bxd5 {[%clk 0:00:57.5]} 28... exd5 {[%clk 0:00:05.7]} 29. Bf4
{[%clk 0:00:57.8]} 29... Re8 {[%clk 0:00:06.2]} 30. Be5+ {[%clk 0:00:55.6]}
30... Kh6 {[%clk 0:00:05]} 31. Rf1 {[%clk 0:00:55.3]} 31... Kh5 {[%clk
0:00:04.8]} 32. Rf7 {[%clk 0:00:53.5]} 32... Re6 {[%clk 0:00:04]} 33. Kg3 {[%clk
0:00:51.3]} 33... Kg5 {[%clk 0:00:03.9]} 34. Bf4+ {[%clk 0:00:47.2]} 34... Kh5
{[%clk 0:00:03]} 35. Rh7# {[%clk 0:00:45.7]} 1-0

[Event "*** Titled Tuesday Blitz"]
[Site "Chess.com"]
[Date "2021.02.16"]
[Round "3"]
[White "Smile2005"]
[Black "Kaiyrbekov"]
[Result "1-0"]
[WhiteElo "2344"]
[BlackElo "2109"]
[TimeControl "180+1"]
[EndTime "10:30:35 PST"]
[Termination "Smile2005 won on time"]

1. Nf3 {[%clk 0:03:00.9]} 1... d5 {[%clk 0:02:59.1]} 2. g3 {[%clk 0:03:01.6]}
2... c5 {[%clk 0:02:57.6]} 3. Bg2 {[%clk 0:03:02.3]} 3... Nc6 {[%clk 0:02:57.8]}
4. O-O {[%clk 0:03:02.9]} 4... e5 {[%clk 0:02:58.2]} 5. d3 {[%clk 0:03:03.5]}
5... Nf6 {[%clk 0:02:57.6]} 6. e4 {[%clk 0:03:04.2]} 6... d4 {[%clk 0:02:47.7]}
7. a4 {[%clk 0:03:03.7]} 7... Bd6 {[%clk 0:02:43.8]} 8. Na3 {[%clk 0:03:04.1]}
8... O-O {[%clk 0:02:40.4]} 9. Nc4 {[%clk 0:03:04.3]} 9... Bc7 {[%clk
0:02:40.6]} 10. Bd2 {[%clk 0:03:04.4]} 10... Be6 {[%clk 0:02:35]} 11. b3 {[%clk
0:03:04]} 11... a6 {[%clk 0:02:30.1]} 12. Ng5 {[%clk 0:02:58.9]} 12... b5 {[%clk
0:02:09.5]} 13. Nxe6 {[%clk 0:02:57.3]} 13... fxe6 {[%clk 0:02:07.3]} 14. axb5
{[%clk 0:02:55.3]} 14... axb5 {[%clk 0:02:07.2]} 15. Nb2 {[%clk 0:02:55.5]}
15... Qe7 {[%clk 0:01:49.5]} 16. Qe2 {[%clk 0:02:52.8]} 16... Ba5 {[%clk
0:01:02.6]} 17. Bxa5 {[%clk 0:02:46.6]} 17... Rxa5 {[%clk 0:00:59.5]} 18. Rxa5
{[%clk 0:02:46.4]} 18... Nxa5 {[%clk 0:01:00.4]} 19. Ra1 {[%clk 0:02:46.7]}
19... Nc6 {[%clk 0:01:00.5]} 20. Bh3 {[%clk 0:02:46.9]} 20... Nb4 {[%clk
0:00:53.2]} 21. Ra5 {[%clk 0:02:40.8]} 21... Qd7 {[%clk 0:00:38.2]} 22. Nd1
{[%clk 0:02:29.1]} 22... Ne8 {[%clk 0:00:19.6]} 23. c3 {[%clk 0:02:19.7]} 23...
dxc3 {[%clk 0:00:17.5]} 24. Nxc3 {[%clk 0:02:20.6]} 24... Nc7 {[%clk 0:00:15.3]}
25. Ra7 {[%clk 0:02:14]} 25... Nc6 {[%clk 0:00:14.4]} 26. Rb7 {[%clk 0:01:47.4]}
26... Nd4 {[%clk 0:00:13.6]} 27. Qg4 {[%clk 0:01:47.2]} 27... Nf3+ {[%clk
0:00:13.2]} 28. Kg2 {[%clk 0:01:46.6]} 28... Qf7 {[%clk 0:00:09.3]} 29. Rxc7
{[%clk 0:01:27.4]} 29... Ne1+ {[%clk 0:00:08.6]} 30. Kh1 {[%clk 0:01:26.5]}
30... Qxc7 {[%clk 0:00:07]} 31. Qxe6+ {[%clk 0:01:26.6]} 31... Kh8 {[%clk
0:00:07]} 32. Nd5 {[%clk 0:01:26.9]} 32... Qf7 {[%clk 0:00:05.6]} 33. f4 {[%clk
0:01:05.6]} 33... Qxe6 {[%clk 0:00:05.5]} 34. Bxe6 {[%clk 0:01:05.5]} 34... exf4
{[%clk 0:00:05.7]} 35. Nxf4 {[%clk 0:01:05.1]} 35... Rd8 {[%clk 0:00:03.1]} 36.
Bd5 {[%clk 0:01:04.1]} 36... g6 {[%clk 0:00:01.5]} 37. Ne6 {[%clk 0:01:04.3]}
37... Re8 {[%clk 0:00:01.4]} 38. Nxc5 {[%clk 0:01:04.1]} 38... Re7 {[%clk
0:00:02.3]} 39. Kg1 {[%clk 0:01:03.3]} 39... b4 {[%clk 0:00:01.8]} 40. Kf2
{[%clk 0:01:03.1]} 40... Nc2 {[%clk 0:00:02.1]} 41. Ke2 {[%clk 0:01:03.5]} 41...
Nd4+ {[%clk 0:00:02.6]} 42. Ke3 {[%clk 0:01:04]} 1-0

[Event "*** Titled Tuesday Blitz"]
[Site "Chess.com"]
[Date "2021.02.16"]
[Round "3"]
[White "Sir_Frankie_Crisp"]
[Black "dukicz123"]
[Result "1-0"]
[WhiteElo "2287"]
[BlackElo "2469"]
[TimeControl "180+1"]
[EndTime "10:30:37 PST"]
[Termination "Sir_Frankie_Crisp won on time"]

1. e4 {[%clk 0:02:58.6]} 1... e5 {[%clk 0:02:59.7]} 2. Nf3 {[%clk 0:02:57.9]}
2... Nc6 {[%clk 0:03:00]} 3. Bb5 {[%clk 0:02:56.9]} 3... a6 {[%clk 0:03:00.4]}
4. Ba4 {[%clk 0:02:56.6]} 4... Nf6 {[%clk 0:03:01]} 5. O-O {[%clk 0:02:56.7]}
5... Be7 {[%clk 0:03:01.7]} 6. Re1 {[%clk 0:02:56.6]} 6... b5 {[%clk 0:03:02.4]}
7. Bb3 {[%clk 0:02:57]} 7... O-O {[%clk 0:03:03.3]} 8. a4 {[%clk 0:02:57.5]}
8... Bb7 {[%clk 0:03:03.3]} 9. Nc3 {[%clk 0:02:55.2]} 9... b4 {[%clk 0:02:49.6]}
10. Nd5 {[%clk 0:02:53.1]} 10... d6 {[%clk 0:02:34.7]} 11. Nxe7+ {[%clk
0:02:51.4]} 11... Nxe7 {[%clk 0:02:28.8]} 12. d3 {[%clk 0:02:30]} 12... Ng6
{[%clk 0:02:27.2]} 13. a5 {[%clk 0:02:18.9]} 13... c5 {[%clk 0:02:25.8]} 14. h3
{[%clk 0:02:12]} 14... h6 {[%clk 0:02:10.2]} 15. Be3 {[%clk 0:02:12.3]} 15...
Qe7 {[%clk 0:02:02.7]} 16. Nd2 {[%clk 0:02:09.3]} 16... Nh7 {[%clk 0:02:00]} 17.
Qh5 {[%clk 0:01:47.3]} 17... Kh8 {[%clk 0:01:56.4]} 18. Nc4 {[%clk 0:01:46.7]}
18... Rad8 {[%clk 0:01:33.8]} 19. Nb6 {[%clk 0:01:43]} 19... Nf6 {[%clk
0:01:27.4]} 20. Qf3 {[%clk 0:01:40]} 20... Kh7 {[%clk 0:01:24]} 21. Rf1 {[%clk
0:01:34.6]} 21... Qe8 {[%clk 0:00:54.7]} 22. g4 {[%clk 0:01:27.5]} 22... Nd7
{[%clk 0:00:49.8]} 23. Nd5 {[%clk 0:01:22.6]} 23... Ne7 {[%clk 0:00:49.8]} 24.
Nxe7 {[%clk 0:01:12.6]} 24... Qxe7 {[%clk 0:00:50.3]} 25. Qg3 {[%clk 0:01:13]}
25... Rg8 {[%clk 0:00:40.5]} 26. f4 {[%clk 0:01:09.6]} 26... exf4 {[%clk
0:00:40.2]} 27. Bxf4 {[%clk 0:01:07.9]} 27... Ne5 {[%clk 0:00:40.7]} 28. Bxe5
{[%clk 0:01:08.1]} 28... Qxe5 {[%clk 0:00:33.3]} 29. Qxe5 {[%clk 0:01:06.8]}
29... dxe5 {[%clk 0:00:34.2]} 30. Rxf7 {[%clk 0:01:06.3]} 30... Bc6 {[%clk
0:00:34.8]} 31. Rc7 {[%clk 0:01:05.4]} 31... Rc8 {[%clk 0:00:33.7]} 32. Ra7
{[%clk 0:01:00.5]} 32... Bb5 {[%clk 0:00:33.4]} 33. Bxg8+ {[%clk 0:00:59.3]}
33... Kxg8 {[%clk 0:00:34.3]} 34. Rf1 {[%clk 0:00:58.8]} 34... Be8 {[%clk
0:00:27.7]} 35. b3 {[%clk 0:00:56.3]} 35... Rc6 {[%clk 0:00:20.3]} 36. Re7
{[%clk 0:00:54.3]} 36... Bg6 {[%clk 0:00:17.7]} 37. Rxe5 {[%clk 0:00:51.9]}
37... Kh7 {[%clk 0:00:16.9]} 38. Rf8 {[%clk 0:00:48.9]} 38... Rc7 {[%clk
0:00:14.6]} 39. Re6 {[%clk 0:00:46.9]} 39... c4 {[%clk 0:00:14.4]} 40. bxc4
{[%clk 0:00:46.3]} 40... Rb7 {[%clk 0:00:13]} 41. Rb6 {[%clk 0:00:45.4]} 41...
Rd7 {[%clk 0:00:11.9]} 42. Rxb4 {[%clk 0:00:45.3]} 1-0

[Event "*** Titled Tuesday Blitz"]
[Site "Chess.com"]
[Date "2021.02.16"]
[Round "3"]
[White "MITerryble"]
[Black "vovachesss"]
[Result "1-0"]
[WhiteElo "2928"]
[BlackElo "2658"]
[TimeControl "180+1"]
[EndTime "10:30:38 PST"]
[Termination "MITerryble won by resignation"]

1. d4 {[%clk 0:03:00.9]} 1... Nf6 {[%clk 0:02:59]} 2. Nf3 {[%clk 0:03:00.8]}
2... d6 {[%clk 0:02:59]} 3. Bg5 {[%clk 0:02:58.7]} 3... Ne4 {[%clk 0:02:55.6]}
4. Bh4 {[%clk 0:02:58.4]} 4... Nd7 {[%clk 0:02:56]} 5. e3 {[%clk 0:02:56]} 5...
Ndf6 {[%clk 0:02:56.9]} 6. Bd3 {[%clk 0:02:55.1]} 6... Bf5 {[%clk 0:02:48.8]} 7.
Nbd2 {[%clk 0:02:43.2]} 7... g6 {[%clk 0:02:46.8]} 8. Bxf6 {[%clk 0:02:39.9]}
8... Nxf6 {[%clk 0:02:47.7]} 9. Bxf5 {[%clk 0:02:38.4]} 9... gxf5 {[%clk
0:02:48.6]} 10. c4 {[%clk 0:02:35.7]} 10... Qd7 {[%clk 0:02:47.2]} 11. Qb3
{[%clk 0:02:34.2]} 11... O-O-O {[%clk 0:02:31.9]} 12. O-O-O {[%clk 0:02:33.4]}
12... Rg8 {[%clk 0:02:28.1]} 13. g3 {[%clk 0:02:32.6]} 13... Ne4 {[%clk
0:02:21.5]} 14. Rhf1 {[%clk 0:02:30]} 14... e6 {[%clk 0:02:18.8]} 15. Kb1 {[%clk
0:02:28.7]} 15... Bg7 {[%clk 0:02:13.2]} 16. Qc2 {[%clk 0:02:25]} 16... d5
{[%clk 0:01:43.9]} 17. Nb3 {[%clk 0:02:09.9]} 17... Kb8 {[%clk 0:01:29]} 18. c5
{[%clk 0:02:05]} 18... Qa4 {[%clk 0:01:18]} 19. Rd3 {[%clk 0:01:59.2]} 19... Bf6
{[%clk 0:01:00.9]} 20. Rc1 {[%clk 0:01:57.8]} 20... c6 {[%clk 0:00:58.1]} 21.
Ng1 {[%clk 0:01:47.3]} 21... h5 {[%clk 0:00:53.9]} 22. f3 {[%clk 0:01:36.7]}
22... Ng5 {[%clk 0:00:53.7]} 23. Qf2 {[%clk 0:01:29.9]} 23... h4 {[%clk
0:00:52]} 24. gxh4 {[%clk 0:01:29.6]} 24... Nh7 {[%clk 0:00:52]} 25. Nd2 {[%clk
0:01:24.7]} 25... Qa5 {[%clk 0:00:45.8]} 26. Ra3 {[%clk 0:01:21.8]} 26... Qc7
{[%clk 0:00:45.3]} 27. f4 {[%clk 0:01:10.6]} 27... Rg4 {[%clk 0:00:41.8]} 28.
Ngf3 {[%clk 0:01:10.8]} 28... Rdg8 {[%clk 0:00:36.6]} 29. Ng5 {[%clk 0:01:10.5]}
29... Nf8 {[%clk 0:00:37.2]} 30. h3 {[%clk 0:01:09.4]} 30... R4xg5 {[%clk
0:00:20.4]} 31. hxg5 {[%clk 0:01:09.1]} 31... Bd8 {[%clk 0:00:21.3]} 32. h4
{[%clk 0:01:07.1]} 32... Rh8 {[%clk 0:00:21.9]} 33. Nf3 {[%clk 0:01:07.1]} 33...
Ng6 {[%clk 0:00:21.2]} 34. Rh1 {[%clk 0:01:06.7]} 34... f6 {[%clk 0:00:20.4]}
35. h5 {[%clk 0:01:04.6]} 35... fxg5 {[%clk 0:00:20.7]} 36. fxg5 {[%clk
0:01:05.5]} 36... f4 {[%clk 0:00:19.2]} 37. Qg2 {[%clk 0:00:57.7]} 37... Ne7
{[%clk 0:00:14.8]} 38. exf4 {[%clk 0:00:54]} 38... Qxf4 {[%clk 0:00:14.4]} 39.
Qh2 {[%clk 0:00:52.6]} 39... Bc7 {[%clk 0:00:13.7]} 40. Qxf4 {[%clk 0:00:52.1]}
40... Bxf4 {[%clk 0:00:14.6]} 41. Rd3 {[%clk 0:00:47.5]} 41... Nf5 {[%clk
0:00:15]} 42. g6 {[%clk 0:00:44.5]} 42... Bh6 {[%clk 0:00:13.6]} 43. Ne5 {[%clk
0:00:43.1]} 43... Ng3 {[%clk 0:00:12.8]} 44. Rxg3 {[%clk 0:00:42.4]} 1-0

[Event "*** Titled Tuesday Blitz"]
[Site "Chess.com"]
[Date "2021.02.16"]
[Round "3"]
[White "johnathan113"]
[Black "lilleper1"]
[Result "0-1"]
[WhiteElo "2607"]
[BlackElo "2841"]
[TimeControl "180+1"]
[EndTime "10:30:38 PST"]
[Termination "lilleper1 won on time"]

1. d4 {[%clk 0:02:56.5]} 1... Nf6 {[%clk 0:02:59.9]} 2. Nc3 {[%clk 0:02:50.5]}
2... d5 {[%clk 0:02:59.6]} 3. Bf4 {[%clk 0:02:49.4]} 3... c5 {[%clk 0:02:59.5]}
4. e3 {[%clk 0:02:49.6]} 4... cxd4 {[%clk 0:02:59.7]} 5. exd4 {[%clk 0:02:50.5]}
5... a6 {[%clk 0:03:00.3]} 6. Bd3 {[%clk 0:02:50.7]} 6... Nc6 {[%clk 0:02:59.5]}
7. Nge2 {[%clk 0:02:51.4]} 7... e6 {[%clk 0:02:52.1]} 8. Qd2 {[%clk 0:02:51.1]}
8... Be7 {[%clk 0:02:48.5]} 9. O-O-O {[%clk 0:02:51.1]} 9... b5 {[%clk
0:02:42.6]} 10. f3 {[%clk 0:02:49.3]} 10... Qa5 {[%clk 0:02:37.3]} 11. a3 {[%clk
0:02:07.7]} 11... b4 {[%clk 0:02:37.4]} 12. axb4 {[%clk 0:02:08.1]} 12... Nxb4
{[%clk 0:02:38.3]} 13. Kb1 {[%clk 0:02:06.1]} 13... Bd7 {[%clk 0:02:27.6]} 14.
Nc1 {[%clk 0:02:05.9]} 14... O-O {[%clk 0:02:19.2]} 15. Nb3 {[%clk 0:02:05.5]}
15... Qb6 {[%clk 0:02:16.5]} 16. Be5 {[%clk 0:01:59.8]} 16... Rfc8 {[%clk
0:01:56.5]} 17. Nc5 {[%clk 0:01:28.4]} 17... Rxc5 {[%clk 0:01:48.9]} 18. dxc5
{[%clk 0:01:29.3]} 18... Qxc5 {[%clk 0:01:49.4]} 19. Na2 {[%clk 0:01:19.8]}
19... Nc6 {[%clk 0:01:45.4]} 20. Bg3 {[%clk 0:01:11.9]} 20... a5 {[%clk
0:01:33]} 21. Rhe1 {[%clk 0:01:12.4]} 21... a4 {[%clk 0:01:32.4]} 22. Bf2 {[%clk
0:01:12.3]} 22... d4 {[%clk 0:01:27.1]} 23. f4 {[%clk 0:00:58.2]} 23... Rb8
{[%clk 0:01:24.4]} 24. Ka1 {[%clk 0:00:47.7]} 24... Nd5 {[%clk 0:01:09.4]} 25.
Be4 {[%clk 0:00:47.8]} 25... Qb5 {[%clk 0:01:03]} 26. Rb1 {[%clk 0:00:37.9]}
26... Bf6 {[%clk 0:01:03.3]} 27. Qd3 {[%clk 0:00:32.8]} 27... Qa5 {[%clk
0:00:56.6]} 28. Bxh7+ {[%clk 0:00:30.3]} 28... Kf8 {[%clk 0:00:56.8]} 29. Be4
{[%clk 0:00:27.1]} 29... Ncb4 {[%clk 0:00:54.9]} 30. Qa3 {[%clk 0:00:18.8]}
30... Kg8 {[%clk 0:00:28.2]} 31. Rbd1 {[%clk 0:00:12]} 31... d3 {[%clk
0:00:28.2]} 32. c3 {[%clk 0:00:10.8]} 32... Nc2+ {[%clk 0:00:28]} 33. Kb1 {[%clk
0:00:10.6]} 33... Nxa3+ {[%clk 0:00:28.5]} 0-1

[Event "*** Titled Tuesday Blitz"]
[Site "Chess.com"]
[Date "2021.02.16"]
[Round "3"]
[White "woodhy"]
[Black "ram1zan"]
[Result "0-1"]
[WhiteElo "2461"]
[BlackElo "2864"]
[TimeControl "180+1"]
[EndTime "10:30:39 PST"]
[Termination "ram1zan won by resignation"]

1. e4 {[%clk 0:03:00.9]} 1... Nf6 {[%clk 0:03:00.9]} 2. e5 {[%clk 0:02:53.9]}
2... Nd5 {[%clk 0:03:00.7]} 3. Nf3 {[%clk 0:02:52.6]} 3... d6 {[%clk 0:03:00.5]}
4. d4 {[%clk 0:02:52.9]} 4... dxe5 {[%clk 0:03:00]} 5. Nxe5 {[%clk 0:02:52.6]}
5... c6 {[%clk 0:03:00.3]} 6. Bd3 {[%clk 0:02:50.5]} 6... Nd7 {[%clk 0:02:53.4]}
7. Nc4 {[%clk 0:02:21.3]} 7... g6 {[%clk 0:02:46.5]} 8. O-O {[%clk 0:02:20.4]}
8... Bg7 {[%clk 0:02:46.6]} 9. c3 {[%clk 0:02:20.7]} 9... O-O {[%clk 0:02:47.5]}
10. Ne3 {[%clk 0:02:20.6]} 10... Nf4 {[%clk 0:02:44.1]} 11. Bc2 {[%clk
0:02:17.3]} 11... e5 {[%clk 0:02:43.8]} 12. d5 {[%clk 0:02:17]} 12... cxd5
{[%clk 0:02:42]} 13. Nxd5 {[%clk 0:02:17.9]} 13... Nxd5 {[%clk 0:02:40.5]} 14.
Qxd5 {[%clk 0:02:18.8]} 14... Nb6 {[%clk 0:02:37.1]} 15. Qf3 {[%clk 0:02:17.9]}
15... f5 {[%clk 0:02:30.5]} 16. Rd1 {[%clk 0:02:18]} 16... Qc7 {[%clk
0:02:27.3]} 17. Na3 {[%clk 0:02:15.7]} 17... a6 {[%clk 0:02:20.5]} 18. Bg5
{[%clk 0:01:59]} 18... Be6 {[%clk 0:02:18.4]} 19. Bb3 {[%clk 0:01:54]} 19...
Bxb3 {[%clk 0:02:16.9]} 20. axb3 {[%clk 0:01:54.9]} 20... h6 {[%clk 0:02:12.6]}
21. Be3 {[%clk 0:01:54.3]} 21... Rad8 {[%clk 0:02:04.6]} 22. Bxb6 {[%clk
0:01:52.9]} 22... Qxb6 {[%clk 0:02:05.5]} 23. b4 {[%clk 0:01:53.1]} 23... e4
{[%clk 0:02:05]} 24. Qg3 {[%clk 0:01:49.4]} 24... Kh7 {[%clk 0:01:55.2]} 25. Nc4
{[%clk 0:01:44]} 25... Qe6 {[%clk 0:01:54.6]} 26. Na5 {[%clk 0:01:32.5]} 26...
f4 {[%clk 0:01:51.4]} 27. Qh4 {[%clk 0:01:32.2]} 27... g5 {[%clk 0:01:39.7]} 28.
Qh5 {[%clk 0:01:31.8]} 28... e3 {[%clk 0:01:36.8]} 29. Qe2 {[%clk 0:01:21.2]}
29... b6 {[%clk 0:01:10.5]} 30. Nc4 {[%clk 0:00:42.2]} 30... exf2+ {[%clk
0:00:55.1]} 31. Kxf2 {[%clk 0:00:43.1]} 31... Qg6 {[%clk 0:00:45.9]} 32. Rxd8
{[%clk 0:00:35.1]} 32... Rxd8 {[%clk 0:00:46.8]} 33. Rxa6 {[%clk 0:00:33.5]}
33... g4 {[%clk 0:00:43.7]} 34. Rxb6 {[%clk 0:00:32.8]} 34... Qg5 {[%clk
0:00:43.7]} 35. Qe4+ {[%clk 0:00:30.2]} 35... Kh8 {[%clk 0:00:43.5]} 36. Re6
{[%clk 0:00:23.4]} 36... Qh4+ {[%clk 0:00:43.2]} 37. Ke2 {[%clk 0:00:21.8]}
37... f3+ {[%clk 0:00:43.3]} 38. gxf3 {[%clk 0:00:20.2]} 38... Qxh2+ {[%clk
0:00:43.6]} 39. Ke3 {[%clk 0:00:20.6]} 39... Qg1+ {[%clk 0:00:43.2]} 40. Kf4
{[%clk 0:00:19.1]} 40... Rf8+ {[%clk 0:00:42.7]} 41. Qf5 {[%clk 0:00:13.5]}
41... Rxf5+ {[%clk 0:00:42]} 42. Kxf5 {[%clk 0:00:14.4]} 42... gxf3 {[%clk
0:00:42.9]} 43. b5 {[%clk 0:00:13.6]} 43... f2 {[%clk 0:00:43]} 44. Ne3 {[%clk
0:00:13.1]} 0-1

[Event "*** Titled Tuesday Blitz"]
[Site "Chess.com"]
[Date "2021.02.16"]
[Round "3"]
[White "Taktikmonster"]
[Black "Mazanchenko_Dmitry"]
[Result "1-0"]
[WhiteElo "2341"]
[BlackElo "2102"]
[TimeControl "180+1"]
[EndTime "10:30:40 PST"]
[Termination "Taktikmonster won on time"]

1. e4 {[%clk 0:03:00.9]} 1... c5 {[%clk 0:02:14.4]} 2. Nf3 {[%clk 0:02:52.9]}
2... d6 {[%clk 0:02:13.9]} 3. d4 {[%clk 0:02:53.2]} 3... Nf6 {[%clk 0:02:13.1]}
4. Nc3 {[%clk 0:02:52.9]} 4... cxd4 {[%clk 0:02:12.6]} 5. Nxd4 {[%clk
0:02:53.8]} 5... Nc6 {[%clk 0:02:13.1]} 6. f3 {[%clk 0:02:52.5]} 6... e5 {[%clk
0:02:11.4]} 7. Nb3 {[%clk 0:02:52.9]} 7... Be6 {[%clk 0:02:10.8]} 8. Be3 {[%clk
0:02:53]} 8... d5 {[%clk 0:02:10.2]} 9. exd5 {[%clk 0:02:51.2]} 9... Nxd5 {[%clk
0:02:11.1]} 10. Nxd5 {[%clk 0:02:51.3]} 10... Qxd5 {[%clk 0:02:11.1]} 11. Qxd5
{[%clk 0:02:51.4]} 11... Bxd5 {[%clk 0:02:12]} 12. c4 {[%clk 0:02:51.7]} 12...
Be6 {[%clk 0:02:10.4]} 13. Nc5 {[%clk 0:02:47]} 13... Bxc5 {[%clk 0:02:02.4]}
14. Bxc5 {[%clk 0:02:47.9]} 14... O-O-O {[%clk 0:02:02.5]} 15. Rc1 {[%clk
0:02:22.4]} 15... b6 {[%clk 0:02:01.1]} 16. Be3 {[%clk 0:02:18.7]} 16... Nd4
{[%clk 0:01:56.8]} 17. Be2 {[%clk 0:02:12]} 17... Bf5 {[%clk 0:01:02.1]} 18. Kf2
{[%clk 0:01:59.1]} 18... Nc2 {[%clk 0:00:53.5]} 19. c5 {[%clk 0:01:52.2]} 19...
Nxe3 {[%clk 0:00:47.4]} 20. Kxe3 {[%clk 0:01:53.1]} 20... bxc5 {[%clk
0:00:44.7]} 21. Rxc5+ {[%clk 0:01:54]} 21... Kb7 {[%clk 0:00:42.7]} 22. Rxe5
{[%clk 0:01:51.4]} 22... Rhe8 {[%clk 0:00:41.6]} 23. Rxe8 {[%clk 0:01:46.1]}
23... Rxe8+ {[%clk 0:00:24.5]} 24. Kf2 {[%clk 0:01:38.6]} 24... Rc8 {[%clk
0:00:23.3]} 25. g4 {[%clk 0:01:28.7]} 25... Be6 {[%clk 0:00:21.3]} 26. Bd3
{[%clk 0:01:01.9]} 26... Bxa2 {[%clk 0:00:19.4]} 27. Ra1 {[%clk 0:00:42.1]}
27... Bc4 {[%clk 0:00:17.2]} 28. Bxh7 {[%clk 0:00:41.8]} 28... g6 {[%clk
0:00:16]} 29. Rc1 {[%clk 0:00:42.1]} 29... Be6 {[%clk 0:00:14.4]} 30. Rxc8
{[%clk 0:00:41]} 30... Kxc8 {[%clk 0:00:15.2]} 31. h4 {[%clk 0:00:41.6]} 31...
Kd8 {[%clk 0:00:13.2]} 32. h5 {[%clk 0:00:42]} 32... gxh5 {[%clk 0:00:09.1]} 33.
gxh5 {[%clk 0:00:42.9]} 33... Ke7 {[%clk 0:00:09.1]} 34. Kg3 {[%clk 0:00:40.1]}
34... Kf6 {[%clk 0:00:08.7]} 35. Kf4 {[%clk 0:00:40.4]} 35... Kg7 {[%clk
0:00:07.7]} 36. Bf5 {[%clk 0:00:40.8]} 36... a5 {[%clk 0:00:07.4]} 37. Bxe6
{[%clk 0:00:40.4]} 1-0